bitfinex/quotes_BTCUSD_20260308
["timestamp","ask_amount","ask_price","bid_price","bid_amount"]
[1772966128994,0.00687748,68040.0,68031.0,0.07349571]
[1772966129192,0.0734851,68041.0,68031.0,0.07349571]
[1772966129654,0.0734851,68041.0,68029.0,0.17586937]
[1772966129655,0.0051722,68040.0,68029.0,0.00148]
[1772966129834,0.0051722,68039.0,68028.0,0.0002]
[1772966130047,0.0051722,68039.0,68028.0,0.0736988]
[1772966130248,0.07496433,68043.0,68028.0,0.0736988]
[1772966130249,0.07347989,68046.0,68029.0,0.08682882]
[1772966130448,0.07347989,68046.0,68031.0,0.08682882]
[1772966130449,0.00148,68042.0,68031.0,0.08682882]
[1772966130628,0.00148,68042.0,68032.0,0.00722614]
[1772966130831,0.00148,68042.0,68033.0,0.14498165]
[1772966131085,0.0750837,68042.0,68035.0,0.07349158]
[1772966131238,0.0750837,68042.0,68036.0,0.14498165]
[1772966131444,0.0750837,68042.0,68037.0,0.14498165]
[1772966131642,0.0015995,68042.0,68038.0,6.5e-07]
[1772966131903,0.00148,68041.0,68033.0,0.07349324]
[1772966132102,0.00148,68041.0,68031.0,0.07349493]
[1772966132568,0.00148,68041.0,68030.0,0.07349631]
[1772966132935,0.07348618,68040.0,68028.0,0.07369908]
[1772966133336,0.07348618,68040.0,68028.0,0.0002]
[1772966133867,0.09010236,68038.0,68025.0,0.0004]
[1772966134080,0.00478362,68035.0,68025.0,0.0004]
[1772966134302,0.00148,68034.0,68025.0,0.0004]
[1772966135352,0.07349374,68033.0,68025.0,0.0004]
[1772966135793,0.0734851,68041.0,68027.0,0.00722614]
[1772966135949,0.00148,68040.0,68030.0,0.00722614]
[1772966136145,0.0734851,68041.0,68030.0,0.00722614]
[1772966136344,0.00148,68040.0,68031.0,0.00722614]
[1772966136559,0.0734851,68041.0,68032.0,0.09171561]
[1772966136748,0.0001195,68042.0,68033.0,0.00722614]
[1772966136988,0.00148,68041.0,68034.0,0.00722614]
[1772966137434,0.07496516,68041.0,68034.0,0.08071848]
[1772966137643,0.07508365,68042.0,68036.0,0.00722614]
[1772966138048,0.0001195,68042.0,68036.0,0.00722614]
[1772966138949,0.07347571,68050.0,68034.0,0.07349234]
[1772966138950,0.07347322,68052.0,68038.0,0.00520018]
[1772966139175,0.00148,68048.0,68039.0,0.09691579]
[1772966139446,0.07347322,68054.0,68040.0,0.07348618]
[1772966139653,0.10778,68053.0,68039.0,0.1704029]
[1772966139810,0.0059356,68053.0,68039.0,0.07868729]
[1772966140204,0.0059356,68053.0,68039.0,0.07968729]
[1772966140668,0.07347322,68054.0,68040.0,0.00520018]
[1772966140669,0.00148,68052.0,68040.0,0.00520018]
[1772966141078,0.00571697,68052.0,68039.0,0.07348711]
[1772966141226,0.00423697,68051.0,68039.0,0.07348711]
[1772966141426,0.09158236,68052.0,68033.0,0.07349371]
[1772966141427,0.00423697,68046.0,68033.0,0.07349371]
[1772966141656,0.00523876,68044.0,68030.0,0.07497698]
[1772966141965,0.0053584,68044.0,68030.0,0.07497698]
[1772966142671,0.00159964,68044.0,68031.0,0.09171561]
[1772966142819,0.00011964,68044.0,68033.0,0.09171561]
[1772966143175,0.00011964,68044.0,68034.0,0.09171561]
[1772966143350,0.00159964,68044.0,68035.0,0.00520018]
[1772966143664,0.07348294,68043.0,68036.0,0.14499541]
[1772966143869,0.07348294,68043.0,68037.0,0.14499541]
[1772966144067,0.07348294,68043.0,68038.0,0.14499541]
[1772966144295,0.07348294,68043.0,68039.0,0.14499541]
[1772966144476,0.07348294,68043.0,68040.0,0.14499541]
[1772966144692,0.07348294,68043.0,68035.0,0.0786916]
[1772966144693,0.07348294,68043.0,68041.0,0.14503828]
[1772966144898,0.07348294,68043.0,68035.0,0.07349243]
[1772966144899,0.06437494,68043.0,68035.0,0.07349243]
[1772966145252,0.06437494,68043.0,68035.0,1.01e-06]
[1772966145458,0.00523876,68042.0,68035.0,1.01e-06]
[1772966147348,0.07872356,68042.0,68035.0,1.01e-06]
[1772966147677,0.00148,68041.0,68035.0,1.01e-06]
[1772966148490,0.00011964,68044.0,68035.0,1.01e-06]
[1772966148686,0.00148,68043.0,68035.0,1.01e-06]
[1772966149307,0.00671876,68043.0,68035.0,1.01e-06]
[1772966149514,0.00011964,68044.0,68035.0,1.01e-06]
[1772966149515,0.00523876,68042.0,68035.0,1.01e-06]
[1772966149714,0.00671876,68042.0,68035.0,1.01e-06]
[1772966150653,0.0734851,68041.0,68035.0,1.01e-06]
[1772966150807,0.00523876,68040.0,68035.0,1.01e-06]
[1772966151652,0.07370511,68041.0,68035.0,1.01e-06]
[1772966153606,0.07370511,68041.0,68030.0,0.07497607]
[1772966153607,0.07370511,68041.0,68028.0,0.09691579]
[1772966153856,0.07370511,68041.0,68028.0,0.17041277]
[1772966154180,0.00523876,68040.0,68028.0,0.07349698]
[1772966157671,0.07348726,68039.0,68028.0,0.07349698]
[1772966157828,0.00523876,68038.0,68024.0,0.17121954]
[1772966158031,0.00523876,68038.0,68024.0,0.07950393]
[1772966158230,0.00523876,68038.0,68025.0,0.07390228]
[1772966158823,0.07348726,68039.0,68021.0,0.0002]
[1772966158824,1.218179,68037.0,68021.0,0.0003345]
[1772966159072,0.00523876,68034.0,68021.0,0.0003345]
[1772966159529,0.09010236,68033.0,68021.0,0.0003345]
[1772966159712,0.09010236,68033.0,68014.0,0.07371367]
[1772966159713,0.00523876,68029.0,68014.0,0.07351367]
[1772966159918,0.00523876,68027.0,68013.0,0.07358509]
[1772966160241,0.00523876,68025.0,68013.0,7.067e-05]
[1772966160442,0.00523876,68024.0,68013.0,0.07358523]
[1772966160643,0.00523876,68026.0,68013.0,7.067e-05]
[1772966161241,0.00523876,68024.0,68013.0,7.067e-05]
[1772966161665,0.07350563,68022.0,68013.0,7.067e-05]
[1772966162157,0.00148,68021.0,68013.0,7.067e-05]
[1772966162494,0.00148,68021.0,68009.0,0.0737351]
[1772966162703,0.07350563,68022.0,68011.0,0.17205342]
[1772966163296,0.07350563,68022.0,68011.0,0.09853696]
[1772966163498,0.00148,68021.0,68011.0,0.09853696]
[1772966163704,0.00148,68021.0,68010.0,0.0735186]
[1772966163705,0.07350779,68020.0,68010.0,0.0735186]
[1772966163919,0.07350779,68020.0,68011.0,0.1055663]
[1772966163920,0.07498779,68020.0,68011.0,0.1055663]
[1772966164111,0.07498779,68020.0,68006.0,0.0752028]
[1772966164112,0.00604412,68019.0,68004.0,0.00148]
[1772966164317,0.00604412,68019.0,68004.0,0.07508074]
[1772966164617,0.07350779,68020.0,68006.0,0.00651445]
[1772966164824,0.07350779,68020.0,68004.0,0.07360074]
[1772966164825,0.00148,68018.0,68007.0,0.11208075]
[1772966165191,0.00148,68018.0,68004.0,0.07508074]
[1772966165608,0.00148,68018.0,68004.0,0.18716149]
[1772966166178,0.07351103,68017.0,68004.0,0.18716149]
[1772966166646,0.07499103,68017.0,68006.0,0.00651445]
[1772966166940,0.0735095,68019.0,68006.0,0.1055663]
[1772966167116,0.00148,68018.0,68009.0,0.11208075]
[1772966167324,0.00148,68018.0,68001.0,0.07352508]
[1772966167325,0.1023663,68018.0,67989.0,0.17458937]
[1772966167527,0.1023663,68018.0,68001.0,0.00148]
[1772966167528,0.00604412,68015.0,68001.0,0.00148]
[1772966167700,0.00604412,68013.0,68001.0,0.00148]
[1772966168138,0.00604412,68013.0,68000.0,0.0012]
[1772966168354,0.00604412,68011.0,68002.0,0.00148]
[1772966168698,0.00604412,68011.0,68003.0,0.00148]
[1772966168902,0.00604412,68011.0,68009.0,0.0002]
[1772966169119,0.00703212,68009.0,68000.0,0.0012]
[1772966169322,0.09632218,68010.0,68002.0,0.0002]
[1772966169521,0.09632218,68010.0,67997.0,0.0059665]
[1772966169522,0.309204,68007.0,67991.0,0.0002]
[1772966169822,0.09632218,68008.0,67985.0,0.0016965]
[1772966170025,0.00148,68009.0,67985.0,0.0016965]
[1772966170026,1.442353,68006.0,67985.0,0.0016965]
[1772966170228,0.07352724,68002.0,67985.0,0.0016965]
[1772966170428,0.17132942,68002.0,67985.0,0.01421838]
[1772966170735,0.753742,68001.0,67985.0,0.01421838]
[1772966171503,0.753742,68001.0,67985.0,0.01400188]
[1772966171692,0.753742,68001.0,67986.0,0.00148]
[1772966172424,0.760434,67999.0,67986.0,0.00148]
[1772966172551,0.07352941,68000.0,67986.0,0.01227987]
[1772966174058,0.07352941,68000.0,67988.0,0.0107177]
[1772966174467,0.07352184,68007.0,67988.0,0.0107177]
[1772966174816,0.899116,68004.0,67988.0,0.0107177]
[1772966175562,0.148316,68004.0,67988.0,0.0107177]
[1772966175745,0.148316,68002.0,67990.0,0.01060489]
[1772966175954,0.148316,68002.0,67990.0,0.01208489]
[1772966176105,0.148316,68002.0,67988.0,0.0002]
[1772966176304,0.09632218,68001.0,67989.0,0.00148]
[1772966176511,0.07352724,68002.0,67989.0,0.00148]
[1772966176709,0.07352724,68002.0,67990.0,0.01060489]
[1772966177130,0.04865611,68004.0,67991.0,0.00148]
[1772966177343,0.09632218,68003.0,67992.0,0.00148]
[1772966177542,1.344083,68003.0,67992.0,0.00148]
[1772966177796,1.243533,68002.0,67992.0,0.00148]
[1772966177947,1.183758,68002.0,67992.0,0.00148]
[1772966178148,1.183758,68002.0,67988.0,0.01080489]
[1772966178367,1.183758,68002.0,67989.0,0.00148]
[1772966178557,0.07352833,68001.0,67988.0,0.01080489]
[1772966178765,0.07352833,68001.0,67990.0,0.00148]
[1772966179179,0.07352833,68001.0,67989.0,0.00148]
[1772966179424,0.16985051,68001.0,67989.0,0.00148]
[1772966179729,0.07352833,68001.0,67989.0,0.00148]
[1772966179881,0.07352833,68001.0,67990.0,0.00705697]
[1772966180532,0.07363034,68018.0,67990.0,0.07353978]
[1772966180676,1.048215,68013.0,67993.0,0.00705697]
[1772966180881,0.00703212,68011.0,67993.0,0.00705697]
[1772966181736,0.07352833,68010.0,67993.0,0.00705697]
[1772966182103,0.994085,68010.0,67993.0,0.00705697]
[1772966182513,0.14704801,68009.0,67993.0,0.00705697]
[1772966182710,0.14704801,68009.0,67995.0,0.00811545]
[1772966182913,0.07351968,68009.0,67998.0,0.1055663]
[1772966183111,0.07351968,68009.0,68000.0,0.00811545]
[1772966183514,0.07351968,68010.0,68000.0,0.00811545]
[1772966183718,0.07351968,68010.0,68001.0,0.0082387]
[1772966183925,0.07351968,68010.0,68003.0,0.0082387]
[1772966184130,0.07351968,68011.0,68003.0,0.0082387]
[1772966184331,0.07351428,68014.0,68003.0,0.0082387]
[1772966184574,0.07352833,68015.0,68006.0,0.0082387]
[1772966184783,0.00011959,68018.0,68007.0,0.0082387]
[1772966184939,0.07362963,68018.0,68008.0,0.0097187]
[1772966186780,0.00011959,68018.0,68010.0,0.00823062]
[1772966187287,0.09632218,68017.0,68001.0,0.00823062]
[1772966187437,0.00015088,68016.0,68001.0,0.00823062]
[1772966187638,0.09632218,68015.0,68006.0,0.06]
[1772966187891,0.09632218,68015.0,68006.0,0.06148]
[1772966188557,0.00159959,68018.0,68006.0,0.06148]
[1772966188740,0.07351103,68017.0,68006.0,0.07038523]
[1772966188971,0.07351103,68017.0,68007.0,0.00890523]
[1772966189742,0.07351103,68017.0,68007.0,0.00705697]
[1772966190930,0.07373104,68017.0,68007.0,0.00705697]
[1772966191716,0.09632218,68016.0,67995.0,0.00927523]
[1772966191913,0.00028902,68013.0,67996.0,0.00148]
[1772966192115,0.07373104,68017.0,67997.0,0.1055663]
[1772966192316,0.07373104,68017.0,68000.0,0.00927523]
[1772966192495,0.07373104,68017.0,68003.0,0.10325726]
[1772966192837,0.07373104,68017.0,68007.0,0.00927523]
[1772966193142,0.07373104,68017.0,68008.0,0.00148]
[1772966193562,0.00148,68020.0,68006.0,0.10325726]
[1772966193746,0.07350454,68023.0,68007.0,0.00705697]
[1772966193747,0.00148,68019.0,68007.0,0.00705697]
[1772966194857,0.07350995,68018.0,68008.0,0.07352076]
[1772966195165,0.07350995,68018.0,68009.0,0.00705697]
[1772966195519,0.11110595,68017.0,68006.0,0.00011959]
[1772966196903,0.11110595,68013.0,67997.0,0.01021927]
[1772966197102,0.11110595,68011.0,67997.0,0.01021927]
[1772966199446,0.0735186,68010.0,67998.0,0.07353157]
[1772966199685,0.18462455,68010.0,67998.0,0.07353157]
[1772966199863,0.0735186,68010.0,67998.0,0.07353157]
[1772966200079,0.11110595,68009.0,67998.0,0.07353157]
[1772966200278,0.11110595,68009.0,67997.0,0.08395165]
[1772966200488,0.11110595,68009.0,67997.0,0.0002]
[1772966200694,0.11110595,68009.0,67993.0,0.00168]
[1772966200695,0.11110595,68007.0,67986.0,0.07374455]
[1772966200868,0.11110595,68005.0,67986.0,0.07374455]
[1772966201253,0.00148,68006.0,67986.0,0.08442091]
[1772966201254,0.11157553,68003.0,67986.0,0.08442091]
[1772966201598,0.11110595,68001.0,67986.0,0.01087636]
[1772966201809,0.78941,67998.0,67986.0,0.08442079]
[1772966202021,0.11110595,67997.0,67986.0,0.08442079]
[1772966203716,0.07353373,67996.0,67987.0,0.01097783]
[1772966204827,0.00148,68001.0,67989.0,0.01097783]
[1772966205539,0.11110595,68008.0,67989.0,0.01097783]
[1772966205747,0.07500184,68007.0,67991.0,0.01110769]
[1772966206150,0.00148,68006.0,67991.0,0.01110769]
[1772966206378,0.00148,68021.0,67995.0,0.01110769]
[1772966206692,0.00025054,68030.0,67995.0,0.01110769]
[1772966206693,0.0734843,68042.0,68019.0,0.10325726]
[1772966206985,0.00148,68042.0,68024.0,0.01110769]
[1772966207130,0.00022001,68043.0,68021.0,0.01110769]
[1772966207326,0.00022001,68043.0,68024.0,0.10325726]
[1772966207562,0.00022001,68043.0,68027.0,0.01123296]
[1772966207761,0.00022001,68043.0,68030.0,0.01123296]
[1772966207969,0.00033973,68043.0,68032.0,0.01123296]
[1772966208131,0.00033973,68043.0,68033.0,0.01123296]
[1772966208548,0.00033973,68043.0,68033.0,0.10325726]
[1772966208744,0.00033973,68043.0,68034.0,0.01123296]
[1772966210323,0.00033973,68043.0,68036.0,0.01188488]
[1772966210693,0.00181973,68043.0,68036.0,0.01188488]
[1772966212427,0.00181973,68043.0,68028.0,0.17823593]
[1772966212428,0.01041705,68041.0,68029.0,0.07349806]
[1772966212533,0.073823,68043.0,68029.0,0.07349806]
[1772966212737,0.00148,68042.0,68029.0,0.07349806]
[1772966213634,0.00148,68041.0,68030.0,0.00673958]
[1772966214447,0.00148,68041.0,68031.0,0.0734959]
[1772966214448,0.00148,68040.0,68031.0,0.0734959]
[1772966214598,0.00148,68039.0,68031.0,0.0734959]
[1772966215949,0.00148,68039.0,68032.0,0.00704249]
[1772966216486,0.00148,68039.0,68033.0,0.07349374]
[1772966216838,0.00148,68039.0,68033.0,0.08053623]
[1772966217041,0.00148,68039.0,68033.0,0.08089224]
[1772966217619,0.00148,68041.0,68033.0,0.08089224]
[1772966218635,0.00148,68041.0,68034.0,0.00750603]
[1772966219178,0.00033973,68043.0,68034.0,0.00750603]
[1772966219377,0.00148,68041.0,68034.0,0.00750603]
[1772966221539,0.07382269,68043.0,68035.0,0.07349158]
[1772966221790,0.01041705,68040.0,68031.0,0.0734959]
[1772966221916,0.11110595,68037.0,68031.0,0.0734959]
[1772966222281,0.11110595,68037.0,68029.0,0.0734959]
[1772966222579,0.11110595,68037.0,68027.0,0.07349921]
[1772966222580,0.01041705,68034.0,68027.0,0.07349914]
[1772966222721,0.00148,68033.0,68027.0,0.07349914]
[1772966223984,0.00148,68033.0,68026.0,0.0002]
[1772966224600,0.08390974,68034.0,68026.0,0.0002]
[1772966224757,0.00148,68032.0,68026.0,0.0002]
[1772966225604,0.07349269,68034.0,68026.0,0.0002]
[1772966225779,0.00148,68031.0,68026.0,0.0002]
[1772966226585,0.07349211,68035.0,68026.0,0.0002]
[1772966226787,0.00148,68032.0,68026.0,0.01301688]
[1772966228607,0.00148,68033.0,68027.0,0.07350022]
[1772966229487,0.01501337,68033.0,68026.0,4.4e-07]
[1772966229712,0.01501337,68033.0,68027.0,0.07350022]
[1772966230667,0.01501337,68033.0,68007.0,0.11589447]
[1772966230668,0.00148,68032.0,68019.0,0.04606863]
[1772966230846,0.00148,68032.0,68021.0,0.07350563]
[1772966231742,0.08702742,68033.0,68021.0,0.08704718]
[1772966231743,0.00148,68031.0,68021.0,0.08704718]
[1772966231969,0.00148,68031.0,68022.0,0.01354155]
[1772966232512,0.0002128,68032.0,68022.0,0.01354155]
[1772966232718,0.0016928,68032.0,68024.0,0.01354155]
[1772966232918,0.10719183,68022.0,67998.0,0.1180586]
[1772966233151,0.03234816,68019.0,67975.0,0.0004]
[1772966233348,0.03234816,68019.0,67975.0,1e-08]
[1772966233349,0.10719183,68013.0,67975.0,1e-08]
[1772966233616,0.10719183,68005.0,67976.0,0.01354155]
[1772966233996,0.750355,67999.0,67976.0,0.13160015]
[1772966234128,0.17636,68012.0,67976.0,0.13171979]
[1772966234129,0.01353337,67995.0,67976.0,0.13171979]
[1772966234333,0.01501337,67994.0,67976.0,0.13171979]
[1772966234758,0.07353698,67993.0,67976.0,0.13171979]
[1772966235160,0.00148,67992.0,67976.0,0.13171979]
[1772966235360,0.00148,67991.0,67976.0,0.13171979]
[1772966235820,0.07353698,67993.0,67976.0,0.13171979]
[1772966236021,0.00148,67990.0,67976.0,0.13171979]
[1772966236223,0.07353698,67993.0,67976.0,0.13171979]
[1772966236348,0.00148,67989.0,67976.0,0.01366119]
[1772966236696,0.07353698,67993.0,67976.0,0.01366119]
[1772966236697,0.08707035,67993.0,67976.0,0.01366119]
[1772966236917,0.00148,67988.0,67976.0,0.01366119]
[1772966237116,0.1207252,67991.0,67976.0,0.00011964]
[1772966237257,0.00148,67987.0,67976.0,0.00031964]
[1772966237644,0.07353698,67993.0,67975.0,1e-08]
[1772966237645,0.10719183,67984.0,67975.0,1e-08]
[1772966237977,0.01501337,67983.0,67975.0,1e-08]
[1772966238152,0.00011957,67984.0,67975.0,1e-08]
[1772966238351,0.00148,67983.0,67970.0,0.01929155]
[1772966238790,0.00148,67982.0,67970.0,0.01929155]
[1772966238994,0.00011957,67984.0,67970.0,0.00575]
[1772966239195,0.00148,67981.0,67972.0,0.01354155]
[1772966239596,0.00011957,67984.0,67972.0,0.01354155]
[1772966239795,0.00148,67983.0,67972.0,0.01354155]
[1772966240206,0.00148,67982.0,67972.0,0.01354155]
[1772966240599,0.00148,67981.0,67972.0,0.01354155]
[1772966241046,0.00011957,67984.0,67972.0,0.01354155]
[1772966241205,0.00148,67983.0,67972.0,0.01354155]
[1772966241525,0.00011957,67984.0,67972.0,0.01354155]
[1772966241726,0.00148,67983.0,67972.0,0.01354155]
[1772966242044,0.00011957,67984.0,67972.0,0.01354155]
[1772966242237,0.00148,67983.0,67972.0,0.01354155]
[1772966242658,0.00011957,67984.0,67972.0,0.01354155]
[1772966242858,0.00148,67982.0,67972.0,0.01354155]
[1772966243268,0.00148,67981.0,67972.0,0.01354155]
[1772966243629,0.00148,67980.0,67973.0,0.01354155]
[1772966244057,0.00011957,67984.0,67973.0,0.01354155]
[1772966244279,0.00148,67983.0,67973.0,0.01354155]
[1772966244641,0.001,67980.0,67973.0,0.01354155]
[1772966244867,0.00148,67979.0,67973.0,0.01354155]
[1772966245023,0.00011957,67984.0,67972.0,0.0002]
[1772966245224,0.001,67984.0,67975.0,0.1180586]
[1772966245478,0.510852,67996.0,67978.0,0.01354155]
[1772966245682,0.496107,67996.0,67980.0,0.01354155]
[1772966245884,0.18072232,67999.0,67980.0,0.01354155]
[1772966245885,0.00148,67995.0,67983.0,0.1180586]
[1772966246088,0.00148,67995.0,67984.0,0.01354155]
[1772966246487,0.00148,67994.0,67984.0,0.01354155]
[1772966247263,0.07353698,67993.0,67984.0,0.01354155]
[1772966247666,0.07353218,67998.0,67984.0,0.01354155]
[1772966247869,0.07353218,67998.0,67980.0,0.00039824]
[1772966247870,0.07353218,67998.0,67986.0,0.01354155]
[1772966248070,0.00148,67997.0,67986.0,0.01354155]
[1772966248421,0.07353157,67999.0,67986.0,0.01354155]
[1772966248570,0.00148,67996.0,67989.0,0.01354155]
[1772966248951,0.0004,68000.0,67989.0,0.01354155]
[1772966249193,0.0004,68000.0,67984.0,0.07354604]
[1772966249194,0.00148,67999.0,67991.0,0.01354155]
[1772966249371,0.00148,67998.0,67991.0,0.01354155]
[1772966249577,0.07392947,68000.0,67991.0,0.01354155]
[1772966249939,0.00148,67997.0,67984.0,0.01354155]
[1772966250298,0.00148,67997.0,67986.0,0.01354155]
[1772966251331,0.00148,67997.0,67980.0,0.07394909]
[1772966251332,0.01353337,67995.0,67980.0,0.00039824]
[1772966251546,0.07353373,67996.0,67980.0,0.00039824]
[1772966251547,0.01353337,67994.0,67980.0,0.00039824]
[1772966251746,0.10719183,67993.0,67980.0,0.00039824]
[1772966251946,0.01353337,67992.0,67980.0,0.00039824]
[1772966252263,0.00148,67991.0,67980.0,0.00039824]
[1772966252742,0.01353337,67989.0,67972.0,0.00168]
[1772966252946,0.01393261,67989.0,67973.0,0.01354155]
[1772966253678,0.07502238,67988.0,67975.0,0.11800727]
[1772966253869,0.07502238,67988.0,67976.0,0.01354155]
[1772966254101,0.07502238,67988.0,67976.0,0.11800727]
[1772966254102,0.00148,67987.0,67976.0,0.11800727]
[1772966254277,0.00148,67987.0,67977.0,0.01354155]
[1772966254648,0.07354238,67988.0,67977.0,0.11800727]
[1772966254649,0.00148,67986.0,67977.0,0.11800727]
[1772966254860,0.00148,67986.0,67978.0,0.01354155]
[1772966255672,0.00148,67985.0,67978.0,0.01354155]
[1772966256079,0.00148,67986.0,67975.0,0.11800727]
[1772966256281,0.00148,67986.0,67976.0,0.01354155]
[1772966256693,0.00148,67986.0,67977.0,0.01354155]
[1772966257004,0.00148,67985.0,67975.0,0.00039924]
[1772966257809,0.11469361,67984.0,67962.0,0.0002]
[1772966258014,0.11469361,67979.0,67962.0,0.07376992]
[1772966258220,0.01501337,67978.0,67962.0,0.07377011]
[1772966258417,0.0163497,67977.0,67963.0,0.07376938]
[1772966258613,0.000399,67984.0,67963.0,0.07376938]
[1772966258965,0.11469361,67982.0,67964.0,0.01639856]
[1772966259262,0.000399,67984.0,67967.0,0.01639856]
[1772966259406,0.000399,67984.0,67967.0,0.10159064]
[1772966259617,0.00148,67983.0,67968.0,0.01639856]
[1772966260039,0.07354888,67982.0,67968.0,0.11800727]
[1772966260234,0.07354888,67982.0,67969.0,0.01639856]
[1772966260440,0.00148,67981.0,67971.0,0.11800727]
[1772966260763,0.00148,67981.0,67974.0,0.01639856]
[1772966261345,0.00148,67981.0,67975.0,0.0002]
[1772966261531,0.000399,67984.0,67975.0,0.0002]
[1772966261729,0.000399,67984.0,67975.0,0.01659856]
[1772966261972,0.000399,67984.0,67975.0,0.11820727]
[1772966262136,0.00148,67983.0,67976.0,0.01639856]
[1772966262565,0.00148,67982.0,67976.0,0.01639856]
[1772966262880,0.00148,67982.0,67976.0,0.01679756]
[1772966263239,0.07354589,67985.0,67976.0,0.01679756]
[1772966263641,0.00148,67984.0,67976.0,0.01679756]
[1772966264655,0.00148,67983.0,67976.0,0.01679756]
[1772966265681,0.00148,67982.0,67976.0,0.01679756]
[1772966266244,0.07354458,67986.0,67977.0,0.01639856]
[1772966266466,0.00148,67985.0,67979.0,0.11800727]
[1772966266670,0.07353911,67992.0,67980.0,0.01639856]
[1772966266987,0.00148,67991.0,67980.0,0.01639856]
[1772966267186,0.00148,67990.0,67980.0,0.01639856]
[1772966267548,0.0163497,67991.0,67976.0,0.07395435]
[1772966267834,0.0163497,67987.0,67976.0,0.000399]
[1772966268269,0.11469361,67987.0,67976.0,0.000399]
[1772966268489,0.0163497,67984.0,67969.0,0.07356283]
[1772966268653,0.0163497,67982.0,67968.0,0.07376192]
[1772966269180,0.0163497,67980.0,67968.0,0.0002]
[1772966269873,0.0163497,67977.0,67968.0,0.0002]
[1772966270124,0.0178297,67976.0,67968.0,0.0002]
[1772966270558,0.08990615,67975.0,67968.0,0.0002]
[1772966272154,0.08990615,67975.0,67965.0,0.0004205]
[1772966272155,0.0163497,67974.0,67965.0,0.0004205]
[1772966272370,0.11469361,67972.0,67958.0,0.03593517]
[1772966272604,0.11469361,67972.0,67953.0,0.0002205]
[1772966272605,0.11469361,67966.0,67953.0,0.0002205]
[1772966272812,0.0178297,67965.0,67953.0,0.0002205]
[1772966274282,0.0178297,67965.0,67953.0,0.0004004]
[1772966274485,0.07356835,67964.0,67953.0,0.09037851]
[1772966274696,0.00148,67963.0,67954.0,0.01639856]
[1772966275412,0.07356835,67964.0,67954.0,0.01679896]
[1772966275621,0.00148,67963.0,67954.0,0.01679896]
[1772966275822,0.001879,67963.0,67954.0,0.01679896]
[1772966276618,0.001879,67963.0,67955.0,0.01639856]
[1772966276765,0.00148,67962.0,67955.0,0.01639856]
[1772966277377,0.00148,67962.0,67955.0,0.0004004]
[1772966278705,0.000399,67963.0,67955.0,0.07397836]
[1772966278888,0.00148,67962.0,67955.0,0.07397836]
[1772966279655,0.00148,67967.0,67957.0,0.11800727]
[1772966279931,0.07355537,67976.0,67960.0,0.01639856]
[1772966280167,0.0178297,67975.0,67960.0,0.01639856]
[1772966280366,0.0163497,67973.0,67960.0,0.0004004]
[1772966280570,0.07354996,67981.0,67961.0,0.07357058]
[1772966280702,0.00148,67978.0,67962.0,0.01639856]
[1772966280902,0.0178297,67978.0,67962.0,0.01623053]
[1772966281357,0.0163497,67978.0,67962.0,0.11816127]
[1772966281609,0.2200482,67981.0,67965.0,0.01639856]
[1772966281715,0.00148,67980.0,67966.0,0.01639856]
[1772966282470,0.11469361,67980.0,67960.0,0.0002464]
[1772966282657,0.0163497,67973.0,67954.0,0.07377906]
[1772966282859,0.0163497,67970.0,67954.0,0.0002]
[1772966283060,0.1219869,67968.0,67954.0,0.0002]
[1772966283256,0.0180851,67967.0,67954.0,0.0002]
[1772966283485,0.0180851,67965.0,67954.0,0.0002]
[1772966284660,0.09165345,67964.0,67954.0,0.0002]
[1772966285693,0.09177304,67964.0,67954.0,0.0002]
[1772966286092,0.07368794,67964.0,67954.0,0.0002]
[1772966286413,0.01813361,67962.0,67954.0,3.196e-05]
[1772966286776,0.07505165,67961.0,67954.0,3.196e-05]
[1772966286977,0.09313675,67961.0,67957.0,0.0002]
[1772966287405,0.0180851,67960.0,67957.0,0.0002]
[1772966288741,0.07357368,67960.0,67957.0,0.0002]
[1772966288947,0.01792317,67959.0,67957.0,0.0002]
[1772966289566,0.01792317,67959.0,67949.0,0.07358361]
[1772966289567,0.01792317,67959.0,67949.0,3.01e-06]
[1772966289770,0.01792317,67959.0,67950.0,0.07358344]
[1772966290003,0.01792317,67959.0,67949.0,0.07358757]
[1772966290200,0.01792317,67959.0,67949.0,3.01e-06]
[1772966290540,0.01892317,67959.0,67949.0,3.01e-06]
[1772966291293,0.07357485,67958.0,67949.0,3.01e-06]
[1772966294597,0.01792317,67957.0,67949.0,3.01e-06]
[1772966295328,0.01935466,67956.0,67949.0,0.00020301]
[1772966295542,0.01935466,67956.0,67947.0,0.07526637]
[1772966296118,0.01935466,67956.0,67947.0,0.0002]
[1772966296318,0.0735781,67955.0,67947.0,0.0002]
[1772966296555,0.01787466,67954.0,67944.0,0.10124]
[1772966297067,0.01787466,67954.0,67944.0,0.02765013]
[1772966297753,0.0735781,67955.0,67944.0,0.02765013]
[1772966297754,0.01787466,67952.0,67944.0,0.02765013]
[1772966298361,0.07358243,67951.0,67943.0,0.00575]
[1772966298561,0.01935466,67950.0,67936.0,0.07359803]
[1772966298723,0.01935466,67950.0,67930.0,0.13378817]
[1772966298724,0.01935466,67950.0,67937.0,0.07359694]
[1772966299378,0.01787466,67950.0,67937.0,0.07359694]
[1772966299581,0.00148,67949.0,67937.0,0.07359694]
[1772966299964,0.02038613,67949.0,67937.0,0.07359694]
[1772966300534,4.851e-05,67948.0,67937.0,0.07359694]
[1772966300711,0.07357176,67961.0,67940.0,0.01920485]
[1772966300932,0.07357176,67961.0,67943.0,0.11685079]
[1772966300933,0.02038613,67960.0,67943.0,0.11685079]
[1772966301072,0.02038613,67960.0,67945.0,0.11685079]
[1772966301611,0.920114,67956.0,67940.0,0.00148]
[1772966301791,0.00148,67960.0,67940.0,0.00148]
[1772966301792,0.01890613,67954.0,67940.0,0.00148]
[1772966301967,0.02038613,67954.0,67940.0,0.00148]
[1772966303144,0.07357807,67956.0,67943.0,0.13605564]
[1772966303374,0.00148,67955.0,67943.0,0.13605564]
[1772966303495,0.07357807,67956.0,67943.0,0.13605564]
[1772966303701,0.00148,67955.0,67943.0,0.13605564]
[1772966305028,0.07357918,67954.0,67944.0,0.07359001]
[1772966305718,0.07357918,67954.0,67943.0,0.07359001]
[1772966305913,0.09248531,67954.0,67943.0,0.07359001]
[1772966307659,0.00148,67953.0,67942.0,0.07359001]
[1772966309592,0.00148,67953.0,67942.0,0.07342205]
[1772966309593,0.07358135,67952.0,67942.0,0.07342205]
[1772966309773,0.07506056,67953.0,67942.0,0.07342205]
[1772966309969,0.00148,67953.0,67943.0,0.11685079]
[1772966310222,0.07357956,67954.0,67943.0,0.11685079]
[1772966310387,0.09248285,67957.0,67943.0,0.11685079]
[1772966310595,0.07357672,67957.0,67944.0,0.11685079]
[1772966310769,0.00148,67956.0,67945.0,0.01920485]
[1772966310970,0.00022001,67954.0,67945.0,0.01920485]
[1772966311207,0.00170001,67954.0,67945.0,0.01920485]